fUSD/lending_fUSD_20251001
["ID","MTS","AMOUNT","RATE_DAILY","PERIOD"]
[388724426,1759336246640,-983.368314,0.0001699,2]
[388724427,1759336246649,-983.368314,0.0001699,2]
[388724428,1759336246659,-151.0,0.0001699,2]
[388724429,1759336246668,-236.641302,0.0001699,2]
[388724430,1759336246678,-151.0,0.0001699,2]
[388724431,1759336246687,-151.0,0.0001699,2]
[388724432,1759336246696,-171.44944,0.0001699,2]
[388724433,1759336246706,-151.0,0.0001699,2]
[388724434,1759336246715,-151.0,0.0001699,2]
[388724435,1759336246726,-223.285534,0.0001699,2]
[388724436,1759336246735,-223.285534,0.0001699,2]
[388724437,1759336246744,-223.285534,0.0001699,2]
[388724438,1759336246754,-151.0,0.0001699,2]
[388724439,1759336246763,-223.285534,0.0001699,2]
[388724440,1759336246772,-151.0,0.0001699,2]
[388724441,1759336246782,-151.0,0.0001699,2]
[388724442,1759336246792,-151.0,0.0001699,2]
[388724443,1759336246801,-151.0,0.0001699,2]
[388724444,1759336246811,-152.194851,0.0001699,2]
[388724445,1759336246820,-151.0,0.0001699,2]
[388724446,1759336246830,-151.0,0.0001699,2]
[388724447,1759336246839,-151.0,0.0001699,2]
[388724448,1759336246848,-151.0,0.0001699,2]
[388724449,1759336246857,-151.0,0.0001699,2]
[388724450,1759336246867,-151.0,0.0001699,2]
[388724451,1759336246876,-151.0,0.0001699,2]
[388724452,1759336246885,-151.0,0.0001699,2]
[388724453,1759336246895,-151.0,0.0001699,2]
[388724454,1759336246904,-151.0,0.0001699,2]
[388724455,1759336246914,-155.873568,0.0001699,2]
[388724456,1759336246923,-151.0,0.0001699,2]
[388724457,1759336246932,-155.873568,0.0001699,2]
[388724458,1759336246942,-155.873568,0.0001699,2]
[388724459,1759336246951,-151.0,0.0001699,2]
[388724460,1759336246960,-306.512154,0.0001699,2]
[388724461,1759336246969,-155.873568,0.0001699,2]
[388724462,1759336246979,-306.512154,0.0001699,2]
[388724463,1759336246988,-306.512154,0.0001699,2]
[388724464,1759336246998,-306.512154,0.0001699,2]
[388724465,1759336247008,-151.0,0.0001699,2]
[388724466,1759336247018,-151.0,0.0001699,2]
[388724467,1759336247028,-151.0,0.0001699,2]
[388724468,1759336247038,-151.0,0.0001699,2]
[388724469,1759336247047,-151.0,0.0001699,2]
[388724470,1759336247057,-151.0,0.0001699,2]
[388724471,1759336247067,-210.24659,0.0001699,2]
[388724472,1759336247077,-210.24659,0.0001699,2]
[388724473,1759336247086,-151.0,0.0001699,2]
[388724474,1759336247096,-151.0,0.0001699,2]
[388724475,1759336247105,-151.0,0.0001699,2]
[388724476,1759336247114,-210.24659,0.0001699,2]
[388724477,1759336247124,-151.0,0.0001699,2]
[388724478,1759336247133,-151.0,0.0001699,2]
[388724479,1759336247142,-151.0,0.0001699,2]
[388724480,1759336247152,-203.841144,0.0001699,2]
[388724481,1759336247163,-151.0,0.0001699,2]
[388724482,1759336247171,-210.24659,0.0001699,2]
[388724483,1759336247180,-151.0,0.0001699,2]
[388724484,1759336247195,-151.0,0.0001699,2]
[388724485,1759336247205,-151.0,0.0001699,2]
[388724486,1759336247215,-151.0,0.0001699,2]
[388724487,1759336247225,-151.0,0.0001699,2]
[388724488,1759336247237,-151.0,0.0001699,2]
[388724489,1759336247247,-151.0,0.0001699,2]
[388724490,1759336247256,-151.0,0.0001699,2]
[388724491,1759336247268,-151.0,0.0001699,2]
[388724492,1759336247277,-151.0,0.0001699,2]
[388724493,1759336247287,-151.0,0.0001699,2]
[388724494,1759336247297,-151.0,0.0001699,2]
[388724495,1759336247306,-151.0,0.0001699,2]
[388724496,1759336247316,-166.35616486,0.0001699,2]
[388724497,1759336247325,-898.814733,0.0001699,2]
[388724498,1759336247335,-324.894166,0.0001699,2]
[388724499,1759336247345,-898.814733,0.0001699,2]
[388724500,1759336247355,-324.894166,0.0001699,2]
[388724501,1759336247365,-765.807716,0.0001699,2]
[388724502,1759336247374,-282.65294163,0.00016991,2]
[388724503,1759336247384,-1000.0,0.00016999,2]
[388724504,1759336247394,-1000.0,0.00016999,2]
[388724505,1759336247404,-1000.0,0.00016999,2]
[388724506,1759336247413,-1000.0,0.00016999,2]
[388724507,1759336247422,-1186.5753389,0.00016999,5]
[388724508,1759336247432,-2000.0,0.00017,2]
[388724509,1759336247442,-810361.31407684,0.00017,2]
[388724510,1759336248055,-85353.37676575,0.00017,2]
[388724511,1759336248074,-582.53899998,0.00017,2]
[388724512,1759336248085,-91535.1821323,0.00017,2]
[388724513,1759336248097,-16640.3424661,0.00017,2]
[388724514,1759336248106,-33305.5500339,0.00017,2]
[388724515,1759336248132,-6384.2133351,0.00017,2]
[388724516,1759336248144,-7370.7144,0.00017,2]
[388724519,1759336253091,505.84,0.00030136,120]
[388724535,1759336412299,4900.0,0.00030136,120]
[388724539,1759336474459,164.38,0.0001603,2]
[388724553,1759336679236,200.0,0.00016005,2]
[388724557,1759336710967,7032.0,0.00030137,120]
[388724559,1759336741730,666.0,0.00015978,3]
[388724580,1759336850647,500.0,0.00030136,120]
[388724585,1759336900285,403.55,0.00015914,2]
[388724586,1759336907898,4546.65,0.00016024,2]
[388724605,1759336994030,1022.17876843,0.00030136,120]
[388724607,1759336994749,151.0,0.0003,120]
[388724608,1759336997271,250.0,0.00015889,2]
[388724609,1759337000481,270.99,0.00015889,2]
[388724611,1759337006264,151.0,0.0003,120]
[388724613,1759337028113,155.34,7.943e-05,2]
[388724614,1759337028338,155.34,9.078e-05,2]
[388724615,1759337028548,155.34,0.00010213,2]
[388724616,1759337028783,155.34,0.00011348,2]
[388724617,1759337029005,155.34,0.00012482,2]
[388724618,1759337029207,155.34,0.00013617,2]
[388724619,1759337029427,155.34,0.00014752,2]
[388724620,1759337029658,155.34,0.00015887,2]
[388724625,1759337031292,160.78,0.000166,2]
[388724628,1759337036295,793.273004,0.00016593,2]
[388724629,1759337044938,151.0,0.0003,120]
[388724633,1759337067782,581.08,0.00015885,2]
[388724642,1759337083781,200.0,0.00015885,2]
[388724643,1759337089242,151.0,0.0003,120]
[388724645,1759337104129,150.0,0.00015288,2]
[388724646,1759337104244,150.0,0.00015288,2]
[388724656,1759337135366,300.0,0.0003,120]
[388724658,1759337177353,9123.33,0.00015888,2]
[388724667,1759337214709,300.0,0.0003,120]
[388724668,1759337218530,170.44,0.00012796,2]
[388724850,1759337419175,169.0,8.3e-07,2]
[388724856,1759337431768,500.0,0.00030136,120]
[388724872,1759337432147,-2500.0,0.00016678,2]
[388724873,1759337432160,-1039.1,0.00016679,2]
[388724874,1759337432206,-960.9,0.00016679,2]
[388724875,1759337432219,-270.99,0.00016684,2]
[388724876,1759337432232,-1200.0,0.00016706,2]
[388724877,1759337432245,-1200.0,0.00016707,2]
[388724878,1759337432258,-550.0,0.00016707,2]
[388724879,1759337432269,-300.0,0.00016707,2]
[388724880,1759337432282,-176.0,0.00016707,2]
[388724881,1759337432292,-151.0,0.00016708,2]
[388724882,1759337432304,-8882.6885148,0.00016708,2]
[388724883,1759337432317,-1696.09454333,0.00016708,2]
[388724884,1759337432329,-257.91778498,0.00016708,2]
[388724885,1759337432341,-599.60298507,0.00016708,2]
[388724886,1759337432354,-1000.0,0.00016729,2]
[388724887,1759337432366,-9211.34798985,0.00016763,2]
[388724888,1759337432379,-150.0,0.00016764,2]
[388724889,1759337432391,-1000.0,0.00016764,2]
[388724890,1759337432404,-500.40049056,0.00016788,2]
[388724891,1759337432416,-9552.16786547,0.00016818,2]
[388724892,1759337432429,-1000.0,0.0001682,2]
[388724893,1759337432441,-590.73069731,0.00016835,2]
[388724894,1759337432453,-664.05656309,0.00016839,2]
[388724895,1759337432466,-1425.0,0.00016842,2]
[388724896,1759337432478,-2367.91262671,0.00016843,2]
[388724897,1759337432490,-623.58710448,0.00016847,2]
[388724898,1759337432502,-322.6107,0.00016847,2]
[388724899,1759337432515,-500.0,0.00016847,2]
[388724900,1759337432529,-500.0,0.00016847,2]
[388724901,1759337432540,-220.0,0.00016847,2]
[388724902,1759337432551,-220.0,0.00016847,2]
[388724903,1759337432562,-220.0,0.00016847,2]
[388724904,1759337432574,-220.0,0.00016847,2]
[388724905,1759337432584,-220.0,0.00016847,2]
[388724906,1759337432598,-220.0,0.00016847,2]
[388724908,1759337432609,-220.0,0.00016847,2]
[388724910,1759337432621,-280.11219275,0.00016847,2]
[388724912,1759337432635,-1000.0,0.00016853,2]
[388724915,1759337432648,-200.0,0.00016863,2]
[388724917,1759337432658,-200.0,0.00016864,2]
[388724919,1759337432668,-9905.5980765,0.00016873,2]
[388724921,1759337432679,-1000.0,0.00016881,2]
[388724923,1759337432690,-500.0,0.00016899,2]
[388724925,1759337432703,-500.0,0.00016899,2]
[388724928,1759337432715,-500.0,0.00016899,2]
[388724930,1759337432726,-500.0,0.00016899,2]
[388724933,1759337432737,-500.0,0.00016899,2]
[388724936,1759337432748,-256.76848952,0.00016899,2]
[388724940,1759337432760,-446.0812751,0.00016899,2]
[388724943,1759337432772,-500.0,0.00016899,2]
[388724949,1759337432794,-500.0,0.00016899,2]
[388724952,1759337432805,-500.0,0.00016899,2]
[388724955,1759337432816,-500.0,0.00016899,2]
[388724959,1759337432827,-500.0,0.00016899,2]
[388724963,1759337432839,-500.0,0.00016899,2]
[388724966,1759337432850,-500.0,0.00016899,2]
[388724969,1759337432861,-500.0,0.00016899,2]
[388724972,1759337432872,-500.0,0.00016899,2]
[388724974,1759337432883,-500.0,0.00016899,2]
[388724976,1759337432894,-500.0,0.00016899,2]
[388724978,1759337432905,-500.0,0.00016899,2]
[388724980,1759337432916,-500.0,0.00016899,2]
[388724982,1759337432928,-500.0,0.00016899,2]
[388724985,1759337432940,-500.0,0.00016899,2]
[388724987,1759337432951,-500.0,0.00016899,2]
[388724988,1759337432962,-500.0,0.00016899,2]
[388724989,1759337432974,-500.0,0.00016899,2]
[388724990,1759337432985,-25127.1764,0.000169,2]
[388724991,1759337432995,-7965.4125,0.000169,2]
[388724992,1759337433006,-1000.0,0.000169,2]
[388724993,1759337433018,-834.59540902,0.000169,2]
[388724994,1759337433028,-180.32256458,0.000169,2]
[388724995,1759337433039,-15045.14331098,0.000169,2]
[388724996,1759337433054,-303.732429,0.000169,2]
[388724997,1759337433069,-3688.39597658,0.000169,2]
[388724998,1759337433093,-11013.24501948,0.000169,2]
[388724999,1759337433115,-12802.79094416,0.000169,2]
[388725000,1759337433127,-164.50454512,0.000169,2]
[388725001,1759337433137,-164.41646115,0.000169,2]
[388725002,1759337433148,-172.28,0.00016903,2]
[388725003,1759337433160,-150.0,0.00016915,2]
[388725004,1759337433171,-150.0,0.00016917,2]
[388725005,1759337433182,-10272.10520533,0.00016928,2]
[388725006,1759337433194,-1000.0,0.00016933,2]
[388725007,1759337433205,-1000.0,0.00016935,2]
[388725008,1759337433217,-1000.0,0.00016944,2]
[388725009,1759337433228,-150.0,0.00016945,2]
[388725010,1759337433239,-1000.812,0.00016947,2]
[388725011,1759337433249,-87456.20768913,0.00016948,2]
[388725012,1759337433263,-2307.76001147,0.00016948,2]
[388725013,1759337433275,-150.0,0.00016957,2]
[388725014,1759337433287,-1425.0,0.0001696,2]
[388725015,1759337433298,-1000.0,0.0001697,2]
[388725016,1759337433309,-500.0,0.00016973,2]
[388725017,1759337433321,-500.0,0.00016973,2]
[388725018,1759337433332,-300.56675169,0.00016973,2]
[388725019,1759337433343,-500.0,0.00016973,2]
[388725020,1759337433354,-1000.0,0.00016975,2]
[388725021,1759337433365,-10652.17309792,0.00016983,2]
[388725022,1759337433376,-2000.0,0.00016988,2]
[388725023,1759337433387,-1796.158,0.00016988,2]
[388725024,1759337433398,-150.0,0.0001699,2]
[388725025,1759337433409,-173.32418622,0.0001699,2]
[388725026,1759337433420,-173.32418622,0.0001699,2]
[388725027,1759337433432,-173.32418622,0.0001699,2]
[388725028,1759337433443,-1425.0,0.00016992,2]
[388725029,1759337433454,-1000.0,0.00016999,2]
[388725030,1759337433465,-1000.0,0.00016999,2]
[388725031,1759337433477,-1000.0,0.00016999,2]
[388725032,1759337433488,-1000.0,0.00016999,2]
[388725033,1759337433499,-300.0,0.00016999,2]
[388725034,1759337433511,-1000.0,0.00016999,2]
[388725035,1759337433522,-316.0487429,0.00016999,2]
[388725036,1759337433533,-327.52733984,0.00016999,2]
[388725037,1759337433543,-500.0,0.00016999,2]
[388725038,1759337433554,-421.09351932,0.00016999,2]
[388725039,1759337433566,-649.49397748,0.00016999,2]
[388725040,1759337433577,-25929.90605686,0.00017,2]
[388725041,1759337433592,-69807.17381445,0.00017,2]
[388725042,1759337434414,-716.6556,0.000169,2]
[388725043,1759337434427,-710.05397036,0.000169,2]
[388725044,1759337434438,-11724.7846862,0.00017,2]
[388725045,1759337434466,-5910.798,0.00017,2]
[388725046,1759337434479,-119707.98327309,0.00017,2]
[388725058,1759337438032,-155697.3852814,0.00017,2]
[388725059,1759337438092,-354052.3419115,0.00017,2]
[388725060,1759337438105,-932.93687343,0.00017,2]
[388725061,1759337438116,-1072.35,0.00017,2]
[388725062,1759337438128,-68113.95031219,0.00017,2]
[388725063,1759337438148,-400.0,0.00017,2]
[388725064,1759337438252,1167.76830427,0.0001528,2]
[388725065,1759337438265,-2117.85935819,0.00017,2]
[388725066,1759337438276,-440.84394355,0.00017,2]
[388725067,1759337438287,-8142.2502143,0.00017,2]
[388725257,1759337440056,-655.72133057,0.00017,2]
[388725260,1759337440070,-1773.9987326,0.00017,2]
[388725266,1759337440114,-3096.16334906,0.00017,2]
[388725273,1759337440174,-2335.64256114,0.00017,2]
[388725280,1759337440232,-280.12501203,0.00017,2]
[388725283,1759337440243,-349.88321703,0.00017,2]
[388725289,1759337440295,-12663.05614011,0.00017,2]
[388725292,1759337440307,-165184.39508431,0.00017,2]
[388725298,1759337440354,-2157.92961323,0.00017,2]
[388725583,1759337443160,-500.0,0.00016899,2]
[388725586,1759337443170,-326.11279763,0.00016899,2]
[388725589,1759337443179,-58209.28720237,0.00017,2]
[388725592,1759337443190,-870.60764668,0.00017,2]
[388725596,1759337443201,-2499.80004621,0.00017,2]
[388725601,1759337443220,-1191.31818181,0.00017,2]
[388725604,1759337443231,-4193.18484273,0.00017,2]
[388725616,1759337443330,-24382.26324672,0.00017,2]
[388725623,1759337443387,-316.47033406,0.00017,2]
[388725625,1759337443398,-814.82264092,0.00017,2]
[388725627,1759337443409,-400.0,0.00017,2]
[388725629,1759337443420,-1463.32378148,0.00017,2]
[388725639,1759337443502,-1615.12814222,0.00017,2]
[388725642,1759337443518,-12056.28511582,0.00017,2]
[388725647,1759337443558,-3319.3363218,0.00017,2]
[388725649,1759337443570,-920.85763823,0.00017,2]
[388725651,1759337443581,-1142500.00000045,0.00017,2]
[388726130,1759337448537,-351.9231823,0.000169,2]
[388726131,1759337448547,-11925.27688626,0.00017,2]
[388726132,1759337448587,-21065.99189781,0.00017,2]
[388726133,1759337448605,-10505.6072915,0.00017,2]
[388726134,1759337448623,-4902.56672345,0.00017,2]
[388726135,1759337448668,-93307.87726302,0.00017,2]
[388726136,1759337448689,-1965.768832,0.00017,2]
[388726137,1759337448713,-667.45350373,0.00017,2]
[388726139,1759337450723,600.0,0.0003,120]
[388726142,1759337554836,1087.94,0.00015995,2]
[388726144,1759337623126,196.09,0.000164,2]
[388726145,1759337623793,200.0,0.00015995,2]
[388726148,1759337736685,164.91,0.00015969,2]
[388726149,1759337739919,164.91,0.00016438,2]
[388726150,1759337740032,835.09,0.00016438,2]
[388726159,1759337798648,190.46,0.00015969,2]
[388726168,1759337842945,310.73,0.00015995,2]
[388726169,1759337843055,1177.19,0.00015968,2]
[388726174,1759337869684,610.0,0.00015935,2]
[388726179,1759337910273,631.47,7.997e-05,2]
[388726180,1759337910490,631.47,8.418e-05,2]
[388726181,1759337910900,631.47,8.839e-05,2]
[388726182,1759337911628,631.47,9.26e-05,2]
[388726183,1759337911699,631.47,9.681e-05,2]
[388726184,1759337911798,631.47,0.00010102,2]
[388726185,1759337912023,631.47,0.00010523,2]
[388726186,1759337912223,631.47,0.00010944,2]
[388726187,1759337912434,631.47,0.00011365,2]
[388726188,1759337912646,631.47,0.00011786,2]
[388726189,1759337912870,631.47,0.00012207,2]
[388726190,1759337913076,631.47,0.00012628,2]
[388726191,1759337913285,631.47,0.00013049,2]
[388726192,1759337913498,631.47,0.0001347,2]
[388726193,1759337913712,631.47,0.00013891,2]
[388726194,1759337913933,631.47,0.00014311,2]
[388726195,1759337914144,631.47,0.00014732,2]
[388726196,1759337914342,631.47,0.00015153,2]
[388726197,1759337914547,631.47,0.00015574,2]
[388726198,1759337914762,631.47,0.00015995,2]
[388726201,1759337964775,1030.0,0.00027397,120]
[388726202,1759337965161,1030.0,0.00027671,120]
[388726203,1759337965378,1030.0,0.00027945,120]
[388726204,1759337971099,1030.0,0.00028219,120]
[388726205,1759337971316,1030.0,0.00028493,120]
[388726206,1759337971532,1030.0,0.00028767,120]
[388726207,1759337972405,1030.0,0.00029041,120]
[388726208,1759337972453,1030.0,0.00029315,120]
[388726209,1759337972535,1030.0,0.00029589,120]
[388726210,1759337972604,1030.0,0.00029863,120]
[388726211,1759337972661,1030.0,0.00030137,120]
[388726213,1759337986694,-271.14919238,0.00016623,2]
[388726215,1759338000844,250.0,0.00015894,2]
[388726216,1759338013725,170.0,0.000113,2]
[388726220,1759338038980,200.0,0.00028625,120]
[388726224,1759338058522,413.82,0.00015995,2]
[388726225,1759338077854,666.0,0.00015995,3]
[388726228,1759338096639,168.61,0.00016475,2]
[388726230,1759338123112,167.36,0.00012681,2]
[388726232,1759338135543,500.0,0.00030136,120]
[388726233,1759338148090,381.61,0.00015847,2]
[388726234,1759338154091,1819.17,0.00015995,2]
[388726237,1759338275017,358.30667691,0.000211,30]
[388726239,1759338298132,200.0,0.00015995,2]
[388726242,1759338312527,150.0,0.00015288,2]
[388726243,1759338312595,150.0,0.000155,2]
[388726244,1759338312677,150.0,0.00015712,2]
[388726245,1759338312736,150.0,0.00015925,2]
[388726246,1759338312813,150.0,0.00016137,2]
[388726247,1759338312893,150.0,0.00016349,2]
[388726248,1759338312942,150.0,0.00016562,2]
[388726249,1759338313133,150.0,0.00015288,2]
[388726250,1759338313192,150.0,0.00015571,2]
[388726251,1759338313253,150.0,0.00015854,2]
[388726252,1759338313323,150.0,0.00016137,2]
[388726253,1759338313398,150.0,0.0001642,2]
[388726254,1759338313663,150.0,0.00015288,2]
[388726255,1759338317017,150.0,0.00015288,2]
[388726256,1759338317067,150.0,0.00015627,2]
[388726257,1759338317141,150.0,0.00015967,2]
[388726258,1759338317222,150.0,0.00016307,2]
[388726260,1759338320066,150.0,0.00015288,2]
[388726261,1759338320139,150.0,0.00016137,2]
[388726262,1759338320296,150.0,0.00015288,2]
[388726263,1759338320334,150.0,0.00015712,2]
[388726264,1759338320384,150.0,0.00016137,2]
[388726265,1759338320454,150.0,0.00016562,2]
[388726266,1759338322615,150.0,0.00015288,2]
[388726267,1759338323172,150.0,0.00015854,2]
[388726268,1759338323217,150.0,0.0001642,2]
[388726269,1759338324620,150.0,0.00015288,2]
[388726271,1759338329113,150.0,0.00015288,2]
[388726272,1759338330289,150.0,0.00015288,2]
[388726273,1759338331289,151.5055723,0.00015288,2]
[388726274,1759338332667,150.0,0.00015288,2]
[388726275,1759338332739,150.0,0.00016137,2]
[388726276,1759338333127,150.0,0.00015288,2]
[388726277,1759338336874,973.09789355,0.000211,30]
[388726278,1759338337465,150.0,0.00015288,2]
[388726279,1759338337532,150.0,0.00015442,2]
[388726280,1759338337577,150.0,0.00015597,2]
[388726281,1759338337661,150.0,0.00015751,2]
[388726282,1759338337757,150.0,0.00015905,2]
[388726283,1759338337802,150.0,0.0001606,2]
[388726284,1759338337867,150.0,0.00016214,2]
[388726285,1759338337934,150.0,0.00016369,2]
[388726286,1759338337983,150.0,0.00016523,2]
[388726287,1759338338279,150.0,0.00015288,2]
[388726288,1759338338328,150.0,0.00016137,2]
[388726289,1759338338573,150.0,0.00015288,2]
[388726290,1759338338613,150.0,0.00015712,2]
[388726291,1759338338656,150.0,0.00016137,2]
[388726292,1759338342817,150.0,0.00016562,2]
[388726296,1759338385944,10000.0,0.00030137,120]
[388726298,1759338404156,10000.0,0.00030137,120]
[388726301,1759338428355,3947.0,0.00030137,120]
[388726355,1759338519804,211.16,0.00015995,2]
[388726356,1759338522907,4525.27,0.00015995,2]
[388726357,1759338596392,5907.81,0.00016438,2]
[388726358,1759338607244,412.25,0.00015995,2]
[388726385,1759338632386,-300.0,0.00016641,2]
[388726386,1759338632396,-300.0,0.00016641,2]
[388726387,1759338632405,-86.36343726,0.00016641,2]
[388726388,1759338632418,-213.63656274,0.00016641,2]
[388726389,1759338632427,-1200.0,0.00016641,2]
[388726390,1759338632437,-111.59649295,0.00016641,2]
[388726391,1759338632450,-56.40350705,0.00016641,2]
[388726392,1759338632460,-646.23986357,0.00016641,2]
[388726393,1759338632493,-1353.76013643,0.00016641,2]
[388726394,1759338632503,-300.0,0.00016641,2]
[388726395,1759338632512,-195.0,0.00016641,2]
[388726396,1759338632521,-200.0,0.00016641,2]
[388726397,1759338632531,-753.73623005,0.00016642,2]
[388726398,1759338632551,-782.07395127,0.00016642,2]
[388726399,1759338632562,-464.18981868,0.00016642,2]
[388726400,1759338632572,-844.23376794,0.00016642,2]
[388726401,1759338632641,-1171.04826565,0.00016642,2]
[388726402,1759338632651,-150.0,0.00016647,2]
[388726403,1759338632660,-150.0,0.00016677,2]
[388726404,1759338632670,-300.0,0.00016679,2]
[388726405,1759338632680,-150.0,0.00016703,2]
[388726406,1759338632689,-195.0,0.00016723,2]
[388726407,1759338632699,-573.01453159,0.00016743,2]
[388726408,1759338632713,-200.18054301,0.00016743,2]
[388726409,1759338632729,-150.0,0.00016774,2]
[388726410,1759338632748,-635.99734343,0.00016788,2]
[388726411,1759338632865,-1701.6785179,0.00016788,2]
[388726412,1759338632876,-583.45583867,0.00016788,2]
[388726413,1759338632886,-8882.6885148,0.0001679,2]
[388726414,1759338632895,-288.98140636,0.0001679,2]
[388726415,1759338632904,-2500.0,0.00016792,2]
[388726416,1759338632913,-413.82,0.00016795,2]
[388726417,1759338632925,-590.72692019,0.00016799,2]
[388726418,1759338632938,-550.0,0.00016799,2]
[388726419,1759338632947,-324.4566,0.000168,2]
[388726420,1759338632956,-1991.41202562,0.000168,2]
[388726421,1759338632967,-508.58797438,0.000168,2]
[388726422,1759338632978,-56.04903926,0.000168,2]
[388726423,1759338632990,-718.78087629,0.000168,2]
[388726425,1759338633005,-225.17008445,0.000168,2]
[388726426,1759338633015,-150.0,0.00016832,2]
[388726427,1759338633025,-9211.34798985,0.00016845,2]
[388726428,1759338633034,-200.0,0.00016864,2]
[388726429,1759338633043,-151.0,0.00016872,2]
[388726430,1759338633052,-437.33895478,0.00016872,2]
[388726431,1759338633062,-151.0,0.00016872,2]
[388726432,1759338633071,-151.0,0.00016872,2]
[388726433,1759338633080,-151.0,0.00016872,2]
[388726434,1759338633090,-151.0,0.00016872,2]
[388726435,1759338633099,-151.0,0.00016872,2]
[388726436,1759338633108,-500.0,0.00016872,2]
[388726437,1759338633118,-151.0,0.00016872,2]
[388726438,1759338633127,-500.0,0.00016872,2]
[388726439,1759338633137,-151.0,0.00016872,2]
[388726440,1759338633146,-500.0,0.00016872,2]
[388726441,1759338633155,-151.0,0.00016872,2]
[388726442,1759338633164,-500.0,0.00016872,2]
[388726443,1759338633174,-151.0,0.00016872,2]
[388726444,1759338633183,-151.0,0.00016872,2]
[388726445,1759338633193,-500.0,0.00016872,2]
[388726446,1759338633203,-151.0,0.00016872,2]
[388726447,1759338633213,-500.0,0.00016872,2]
[388726448,1759338633222,-221.98529903,0.00016872,2]
[388726449,1759338633231,-500.0,0.00016872,2]
[388726450,1759338633240,-500.0,0.00016872,2]
[388726451,1759338633250,-500.0,0.00016872,2]
[388726452,1759338633259,-500.0,0.00016872,2]
[388726453,1759338633268,-598.52303686,0.00016872,2]
[388726454,1759338633277,-151.0,0.00016872,2]
[388726455,1759338633286,-151.0,0.00016872,2]
[388726456,1759338633295,-151.0,0.00016872,2]
[388726457,1759338633305,-151.0,0.00016872,2]
[388726458,1759338633314,-151.0,0.00016872,2]
[388726459,1759338633323,-151.0,0.00016872,2]
[388726460,1759338633332,-114.92593833,0.00016872,2]
[388726461,1759338633344,-36.07406167,0.00016872,2]
[388726462,1759338633353,-151.0,0.00016872,2]
[388726463,1759338633362,-200.0,0.00016872,2]
[388726464,1759338633372,-151.0,0.00016872,2]
[388726465,1759338633382,-155.02238158,0.00016872,2]
[388726466,1759338633391,-151.0,0.00016872,2]
[388726467,1759338633400,-151.0,0.00016872,2]
[388726468,1759338633411,-500.0,0.00016872,2]
[388726469,1759338633420,-151.0,0.00016872,2]
[388726470,1759338633429,-151.0,0.00016872,2]
[388726471,1759338633439,-151.0,0.00016872,2]
[388726472,1759338633449,-151.0,0.00016872,2]
[388726473,1759338633458,-151.0,0.00016872,2]
[388726474,1759338633468,-151.0,0.00016872,2]
[388726475,1759338633478,-151.0,0.00016872,2]
[388726476,1759338633488,-151.0,0.00016872,2]
[388726477,1759338633497,-151.0,0.00016872,2]
[388726478,1759338633508,-151.0,0.00016872,2]
[388726479,1759338633517,-151.0,0.00016872,2]